[Event "*** Titled Tuesday 3|2 Blitz"]
[Site "Chess.com"]
[Date "2015.12.01"]
[Round "2"]
[White "Tobi-Wan-Kenobi"]
[Black "SlovenskiZmaj"]
[Result "1/2-1/2"]
[WhiteElo "2351"]
[BlackElo "2315"]
[TimeControl "180+2"]
[EndTime "11:23:04 PST"]
[Termination "Game drawn by repetition"]

1. d4 {[%clk 0:03:01.9]} 1... f5 {[%clk 0:03:00.3]} 2. g3 {[%clk 0:02:58.7]}
2... d6 {[%clk 0:03:00.9]} 3. Bg2 {[%clk 0:02:59.3]} 3... Nf6 {[%clk 0:03:02.4]}
4. Nf3 {[%clk 0:02:59.8]} 4... g6 {[%clk 0:03:04]} 5. O-O {[%clk 0:03:01.3]}
5... Bg7 {[%clk 0:03:05.6]} 6. b3 {[%clk 0:03:02.9]} 6... O-O {[%clk 0:03:07]}
7. Bb2 {[%clk 0:03:04.4]} 7... Na6 {[%clk 0:03:06.2]} 8. Nbd2 {[%clk 0:03:03.8]}
8... c6 {[%clk 0:03:05.7]} 9. c4 {[%clk 0:03:03.6]} 9... Qe8 {[%clk 0:03:05.6]}
10. Qc2 {[%clk 0:03:02.5]} 10... h6 {[%clk 0:02:46.7]} 11. a3 {[%clk 0:02:58.5]}
11... g5 {[%clk 0:02:44.4]} 12. e4 {[%clk 0:02:56.1]} 12... fxe4 {[%clk
0:02:44.1]} 13. Nxe4 {[%clk 0:02:55.5]} 13... Nxe4 {[%clk 0:02:46]} 14. Qxe4
{[%clk 0:02:55.6]} 14... Bf5 {[%clk 0:02:47.6]} 15. Qe3 {[%clk 0:02:51.3]} 15...
Qd7 {[%clk 0:02:46]} 16. Rfe1 {[%clk 0:02:49.2]} 16... Rf7 {[%clk 0:02:45.5]}
17. b4 {[%clk 0:02:41.5]} 17... Raf8 {[%clk 0:02:44.2]} 18. Nd2 {[%clk 0:02:37]}
18... Nc7 {[%clk 0:02:18.5]} 19. Rac1 {[%clk 0:02:24]} 19... a6 {[%clk
0:02:16.8]} 20. Bc3 {[%clk 0:02:15.9]} 20... Bg4 {[%clk 0:02:01.6]} 21. f3
{[%clk 0:02:13.8]} 21... Bh5 {[%clk 0:02:00.7]} 22. Rf1 {[%clk 0:01:59]} 22...
d5 {[%clk 0:01:58.7]} 23. c5 {[%clk 0:01:52.1]} 23... Bg6 {[%clk 0:01:51.4]} 24.
a4 {[%clk 0:01:47.5]} 24... e6 {[%clk 0:01:38.6]} 25. Rce1 {[%clk 0:01:46.5]}
25... Bf5 {[%clk 0:01:35]} 26. f4 {[%clk 0:01:29.8]} 26... gxf4 {[%clk
0:01:20.5]} 27. Rxf4 {[%clk 0:01:25.3]} 27... Bc2 {[%clk 0:01:16.4]} 28. Rxf7
{[%clk 0:01:19.6]} 28... Qxf7 {[%clk 0:01:17]} 29. Bh3 {[%clk 0:01:04.6]} 29...
Bxa4 {[%clk 0:01:09.4]} 30. Bxe6 {[%clk 0:01:02.9]} 30... Nxe6 {[%clk
0:01:11.3]} 31. Qxe6 {[%clk 0:01:04.2]} 31... Qxe6 {[%clk 0:01:13.2]} 32. Rxe6
{[%clk 0:01:05.5]} 32... Bc2 {[%clk 0:01:05.9]} 33. Re7 {[%clk 0:01:03.1]} 33...
Rf7 {[%clk 0:01:06.1]} 34. Re8+ {[%clk 0:01:00.5]} 34... Rf8 {[%clk 0:01:06.7]}
35. Re7 {[%clk 0:01:01.5]} 35... Rf7 {[%clk 0:01:08]} 36. Re8+ {[%clk
0:00:59.5]} 36... Kh7 {[%clk 0:01:08.9]} 37. Kg2 {[%clk 0:00:58.3]} 37... Kg6
{[%clk 0:01:00.2]} 38. h3 {[%clk 0:00:54.6]} 38... h5 {[%clk 0:01:00.1]} 39.
Re6+ {[%clk 0:00:50]} 39... Kh7 {[%clk 0:01:00.1]} 40. Re8 {[%clk 0:00:48]}
40... Kg6 {[%clk 0:00:58.3]} 41. Re6+ {[%clk 0:00:47]} 41... Kh7 {[%clk
0:00:51.5]} 42. g4 {[%clk 0:00:47.9]} 42... hxg4 {[%clk 0:00:50.9]} 43. hxg4
{[%clk 0:00:49.8]} 43... Bh6 {[%clk 0:00:52.3]} 44. Nf1 {[%clk 0:00:43.9]} 44...
Be4+ {[%clk 0:00:49.2]} 45. Kg1 {[%clk 0:00:44.6]} 45... Bf4 {[%clk 0:00:47.5]}
46. Bd2 {[%clk 0:00:44.7]} 46... Kg7 {[%clk 0:00:35.6]} 47. Bxf4 {[%clk
0:00:26.1]} 47... Rxf4 {[%clk 0:00:37.5]} 48. Re7+ {[%clk 0:00:27.1]} 48... Kf6
{[%clk 0:00:30.3]} 49. Rxb7 {[%clk 0:00:26.1]} 49... Rxg4+ {[%clk 0:00:31.3]}
50. Kf2 {[%clk 0:00:27.1]} 50... Bd3 {[%clk 0:00:32.4]} 51. Nd2 {[%clk
0:00:22.7]} 51... Bb5 {[%clk 0:00:24.5]} 52. Nf3 {[%clk 0:00:22.7]} 52... Re4
{[%clk 0:00:23.7]} 53. Rb6 {[%clk 0:00:17.1]} 53... Ke7 {[%clk 0:00:14.3]} 54.
Kg3 {[%clk 0:00:17.5]} 54... Kd7 {[%clk 0:00:14.1]} 55. Rb7+ {[%clk 0:00:18.1]}
55... Kc8 {[%clk 0:00:15.2]} 56. Rf7 {[%clk 0:00:17.2]} 56... Be2 {[%clk
0:00:15.8]} 57. Rf4 {[%clk 0:00:17.7]} 57... Re3 {[%clk 0:00:12]} 58. Kf2 {[%clk
0:00:17.8]} 58... Rxf3+ {[%clk 0:00:10.1]} 59. Rxf3 {[%clk 0:00:19.7]} 59...
Bxf3 {[%clk 0:00:11.9]} 60. Kxf3 {[%clk 0:00:21.6]} 60... Kd7 {[%clk 0:00:06.9]}
61. Kf4 {[%clk 0:00:22.7]} 61... Ke8 {[%clk 0:00:07.6]} 62. Kf5 {[%clk
0:00:22.8]} 62... Kf7 {[%clk 0:00:08.5]} 63. Ke5 {[%clk 0:00:23.8]} 63... Ke7
{[%clk 0:00:09.9]} 64. Kf5 {[%clk 0:00:24.9]} 64... Kf7 {[%clk 0:00:11.4]} 65.
Kg5 {[%clk 0:00:26.4]} 65... Kg7 {[%clk 0:00:12.6]} 66. Kh5 {[%clk 0:00:24.4]}
66... Kf6 {[%clk 0:00:06]} 67. Kg4 {[%clk 0:00:25.3]} 67... Kg6 {[%clk
0:00:05.3]} 68. Kf4 {[%clk 0:00:26.4]} 68... Kf6 {[%clk 0:00:06.9]} 69. Kg4
{[%clk 0:00:27.5]} 69... Kg6 {[%clk 0:00:08.5]} 70. Kf4 {[%clk 0:00:28.8]} 70...
Kf6 {[%clk 0:00:10.1]} 71. Kg4 {[%clk 0:00:24.2]} 71... Kg6 {[%clk 0:00:11.4]}
1/2-1/2

[Event "*** Titled Tuesday 3|2 Blitz"]
[Site "Chess.com"]
[Date "2015.12.01"]
[Round "2"]
[White "amaidel"]
[Black "Boryboy"]
[Result "1-0"]
[WhiteElo "2396"]
[BlackElo "2522"]
[TimeControl "180+2"]
[EndTime "11:23:15 PST"]
[Termination "amaidel won by resignation"]

1. e4 {[%clk 0:02:53.6]} 1... e6 {[%clk 0:03:00.4]} 2. d4 {[%clk 0:02:54.2]}
2... d5 {[%clk 0:03:02.1]} 3. exd5 {[%clk 0:02:55.6]} 3... exd5 {[%clk
0:03:03.1]} 4. Nf3 {[%clk 0:02:54.8]} 4... Nf6 {[%clk 0:03:02.4]} 5. Be2 {[%clk
0:02:54.4]} 5... c6 {[%clk 0:03:03.2]} 6. O-O {[%clk 0:02:55.2]} 6... Bd6 {[%clk
0:03:04.5]} 7. c4 {[%clk 0:02:56]} 7... O-O {[%clk 0:03:05.1]} 8. Nc3 {[%clk
0:02:57.2]} 8... h6 {[%clk 0:03:05.7]} 9. cxd5 {[%clk 0:02:57.8]} 9... cxd5
{[%clk 0:03:05.7]} 10. Ne5 {[%clk 0:02:58.8]} 10... Nc6 {[%clk 0:03:06.2]} 11.
Bf3 {[%clk 0:02:54.9]} 11... Be6 {[%clk 0:03:03.4]} 12. Re1 {[%clk 0:02:54.4]}
12... a6 {[%clk 0:03:01.5]} 13. Bf4 {[%clk 0:02:50.8]} 13... Re8 {[%clk
0:03:00.6]} 14. Nxc6 {[%clk 0:02:49.7]} 14... bxc6 {[%clk 0:03:01.2]} 15. Bxd6
{[%clk 0:02:51.3]} 15... Qxd6 {[%clk 0:03:03.1]} 16. Na4 {[%clk 0:02:52.7]}
16... Rab8 {[%clk 0:03:02.6]} 17. b3 {[%clk 0:02:49.7]} 17... Rb4 {[%clk
0:02:56.6]} 18. Rc1 {[%clk 0:02:47.6]} 18... Qf4 {[%clk 0:02:54.7]} 19. Rxc6
{[%clk 0:02:45.7]} 19... Rxd4 {[%clk 0:02:54.7]} 20. Qc1 {[%clk 0:02:46.8]}
20... Qxc1 {[%clk 0:02:51]} 21. Rexc1 {[%clk 0:02:47.6]} 21... a5 {[%clk
0:02:50.3]} 22. Ra6 {[%clk 0:02:22.9]} 22... Rd2 {[%clk 0:02:47.5]} 23. a3
{[%clk 0:02:23.7]} 23... Ra2 {[%clk 0:02:44.9]} 24. Rxa5 {[%clk 0:02:09.6]}
24... Rxa3 {[%clk 0:02:46]} 25. b4 {[%clk 0:02:10.8]} 25... Rb8 {[%clk
0:02:47.1]} 26. Nc5 {[%clk 0:02:08.6]} 26... Ra8 {[%clk 0:02:14.5]} 27. Rxa3
{[%clk 0:02:02.3]} 27... Rxa3 {[%clk 0:02:15.2]} 28. b5 {[%clk 0:02:03.5]} 28...
Ra2 {[%clk 0:02:10.5]} 29. b6 {[%clk 0:01:46.2]} 29... Rb2 {[%clk 0:02:11.4]}
30. b7 {[%clk 0:01:46.4]} 30... Kh7 {[%clk 0:02:01.1]} 31. h3 {[%clk 0:01:45.6]}
31... h5 {[%clk 0:01:26.8]} 32. Ra1 {[%clk 0:01:45.5]} 32... Nd7 {[%clk
0:01:08]} 33. Nxd7 {[%clk 0:01:42.3]} 33... Rxb7 {[%clk 0:01:04]} 34. Nc5 {[%clk
0:01:42.6]} 34... Rc7 {[%clk 0:01:03.8]} 35. Nxe6 {[%clk 0:01:43.6]} 35... fxe6
{[%clk 0:01:05.7]} 36. Bxh5 {[%clk 0:01:44.3]} 36... Rc6 {[%clk 0:00:55.7]} 37.
Bg4 {[%clk 0:01:44.8]} 37... Kg6 {[%clk 0:00:56]} 38. Re1 {[%clk 0:01:45.5]}
38... Kf6 {[%clk 0:00:56.9]} 39. f4 {[%clk 0:01:46.5]} 39... Rd6 {[%clk
0:00:56.6]} 40. Kf2 {[%clk 0:01:46.8]} 40... d4 {[%clk 0:00:58.2]} 41. Ke2
{[%clk 0:01:46.2]} 41... e5 {[%clk 0:00:59.1]} 42. fxe5+ {[%clk 0:01:45.8]}
42... Kxe5 {[%clk 0:01:01]} 43. Kd3+ {[%clk 0:01:46.9]} 43... Kf4 {[%clk
0:00:58.6]} 44. Bf3 {[%clk 0:01:47.6]} 44... Kg5 {[%clk 0:00:54.1]} 45. Re4
{[%clk 0:01:48.1]} 45... Rb6 {[%clk 0:00:55.1]} 46. Rxd4 {[%clk 0:01:49]} 46...
Rb2 {[%clk 0:00:55.2]} 47. Ke3 {[%clk 0:01:49.5]} 47... Rb6 {[%clk 0:00:55.9]}
48. Kf2 {[%clk 0:01:50.3]} 48... Ra6 {[%clk 0:00:53.7]} 49. Kg3 {[%clk
0:01:51.3]} 49... Rb6 {[%clk 0:00:54]} 50. Rd5+ {[%clk 0:01:52.3]} 50... Kh6
{[%clk 0:00:53.8]} 51. Rc5 {[%clk 0:01:53.3]} 51... Rb8 {[%clk 0:00:51.7]} 52.
Kh4 {[%clk 0:01:53.2]} 52... Rb4+ {[%clk 0:00:51.8]} 53. g4 {[%clk 0:01:53.4]}
53... Rd4 {[%clk 0:00:49.8]} 54. Kg3 {[%clk 0:01:50.9]} 54... Kg6 {[%clk
0:00:49.7]} 55. h4 {[%clk 0:01:51.7]} 55... Rb4 {[%clk 0:00:50.3]} 56. Rf5
{[%clk 0:01:51.5]} 56... Rd4 {[%clk 0:00:48.7]} 57. Rf4 {[%clk 0:01:52.3]} 57...
Rd2 {[%clk 0:00:47.6]} 58. Rc4 {[%clk 0:01:52.3]} 58... Kf6 {[%clk 0:00:47.2]}
59. Kf4 {[%clk 0:01:52.5]} 59... Ra2 {[%clk 0:00:47]} 60. Rc6+ {[%clk
0:01:51.8]} 60... Ke7 {[%clk 0:00:46.9]} 61. h5 {[%clk 0:01:51]} 61... Ra5
{[%clk 0:00:47.5]} 62. Be4 {[%clk 0:01:49.3]} 62... Rb5 {[%clk 0:00:46.7]} 63.
g5 {[%clk 0:01:47.2]} 63... Rb8 {[%clk 0:00:43.5]} 64. Rc7+ {[%clk 0:01:47.5]}
64... Kf8 {[%clk 0:00:44.4]} 65. Bd5 {[%clk 0:01:47.7]} 65... Rd8 {[%clk
0:00:41.3]} 66. Ke5 {[%clk 0:01:46.2]} 66... Re8+ {[%clk 0:00:38.9]} 67. Be6
{[%clk 0:01:46.4]} 67... Rb8 {[%clk 0:00:17.8]} 68. Rc8+ {[%clk 0:01:46.4]}
68... Rxc8 {[%clk 0:00:18.8]} 69. Bxc8 {[%clk 0:01:47]} 69... Kf7 {[%clk
0:00:20.7]} 70. Bf5 {[%clk 0:01:47.1]} 70... Kg8 {[%clk 0:00:22.1]} 71. Kd6
{[%clk 0:01:44.2]} 71... Kh8 {[%clk 0:00:22]} 72. Ke7 {[%clk 0:01:44.3]} 72...
Kg8 {[%clk 0:00:23.9]} 73. Be6+ {[%clk 0:01:31.9]} 73... Kh7 {[%clk 0:00:23.6]}
74. Kf7 {[%clk 0:01:13.9]} 74... Kh8 {[%clk 0:00:22.1]} 75. h6 {[%clk
0:01:11.6]} 75... g6 {[%clk 0:00:18.9]} 76. Bg4 {[%clk 0:01:11.8]} 76... Kh7
{[%clk 0:00:07.1]} 77. Bf3 {[%clk 0:01:12.5]} 77... Kh8 {[%clk 0:00:09]} 78.
Kxg6 {[%clk 0:01:13.1]} 78... Kg8 {[%clk 0:00:08.2]} 79. Kf6 {[%clk 0:01:14]}
79... Kh8 {[%clk 0:00:06.3]} 80. g6 {[%clk 0:01:14.3]} 80... Kg8 {[%clk
0:00:08]} 81. Bd5+ {[%clk 0:01:15.2]} 1-0

[Event "*** Titled Tuesday 3|2 Blitz"]
[Site "Chess.com"]
[Date "2015.12.01"]
[Round "2"]
[White "Imre91"]
[Black "Iball95"]
[Result "0-1"]
[WhiteElo "2560"]
[BlackElo "2429"]
[TimeControl "180+2"]
[EndTime "11:24:53 PST"]
[Termination "Iball95 won by resignation"]

1. Nf3 {[%clk 0:03:01.9]} 1... Nf6 {[%clk 0:02:59.4]} 2. g3 {[%clk 0:03:03.1]}
2... d5 {[%clk 0:02:57]} 3. Bg2 {[%clk 0:03:04.4]} 3... c5 {[%clk 0:02:57.6]} 4.
O-O {[%clk 0:03:05.3]} 4... Nc6 {[%clk 0:02:58.9]} 5. d4 {[%clk 0:03:06.4]} 5...
cxd4 {[%clk 0:02:54.2]} 6. Nxd4 {[%clk 0:03:08.3]} 6... e6 {[%clk 0:02:55.6]} 7.
c4 {[%clk 0:03:08.3]} 7... Bc5 {[%clk 0:02:56.8]} 8. Nxc6 {[%clk 0:03:04.9]}
8... bxc6 {[%clk 0:02:58.7]} 9. cxd5 {[%clk 0:03:06.4]} 9... cxd5 {[%clk
0:02:58.8]} 10. Nc3 {[%clk 0:03:06.8]} 10... O-O {[%clk 0:02:51.4]} 11. Bg5
{[%clk 0:03:06.1]} 11... Rb8 {[%clk 0:02:48.3]} 12. Rc1 {[%clk 0:03:00.9]} 12...
Be7 {[%clk 0:02:39.5]} 13. b3 {[%clk 0:02:59.7]} 13... Bb7 {[%clk 0:02:34.7]}
14. Na4 {[%clk 0:02:58.6]} 14... Qa5 {[%clk 0:02:23.5]} 15. Qd2 {[%clk
0:02:57.3]} 15... Qxd2 {[%clk 0:02:20.6]} 16. Bxd2 {[%clk 0:02:56.3]} 16... Rfc8
{[%clk 0:02:18.1]} 17. Be3 {[%clk 0:02:56.8]} 17... Ra8 {[%clk 0:02:04.7]} 18.
Nc5 {[%clk 0:02:48.1]} 18... Bc6 {[%clk 0:01:49]} 19. Rc2 {[%clk 0:02:48.8]}
19... Be8 {[%clk 0:01:44.4]} 20. Rfc1 {[%clk 0:02:49.3]} 20... h6 {[%clk
0:01:34.5]} 21. Na6 {[%clk 0:02:46]} 21... Rxc2 {[%clk 0:01:25.9]} 22. Rxc2
{[%clk 0:02:47.9]} 22... Bd6 {[%clk 0:01:23.6]} 23. a4 {[%clk 0:02:43.3]} 23...
Bd7 {[%clk 0:00:41.2]} 24. Bf1 {[%clk 0:02:37.8]} 24... Ne4 {[%clk 0:00:39.5]}
25. f3 {[%clk 0:02:36.7]} 25... Nf6 {[%clk 0:00:40.4]} 26. Bf2 {[%clk
0:02:24.7]} 26... Kf8 {[%clk 0:00:39.5]} 27. Nc5 {[%clk 0:02:21.5]} 27... Be8
{[%clk 0:00:36.8]} 28. Nb7 {[%clk 0:02:19.9]} 28... Be7 {[%clk 0:00:35.5]} 29.
Rc7 {[%clk 0:02:18.3]} 29... Nd7 {[%clk 0:00:34.5]} 30. b4 {[%clk 0:02:12.2]}
30... Nb6 {[%clk 0:00:32.4]} 31. a5 {[%clk 0:02:11.8]} 31... Nc4 {[%clk
0:00:32.7]} 32. Bc5 {[%clk 0:02:10.8]} 32... Bxc5+ {[%clk 0:00:28.1]} 33. Nxc5
{[%clk 0:02:12.7]} 33... Bb5 {[%clk 0:00:26.4]} 34. e4 {[%clk 0:02:12.5]} 34...
dxe4 {[%clk 0:00:26.5]} 35. Nxe4 {[%clk 0:02:09]} 35... Na3 {[%clk 0:00:22.9]}
36. Nd6 {[%clk 0:02:09.9]} 36... Bxf1 {[%clk 0:00:22.8]} 37. Kxf1 {[%clk
0:02:10.4]} 37... f6 {[%clk 0:00:18.4]} 38. Rf7+ {[%clk 0:02:06.7]} 38... Kg8
{[%clk 0:00:19.1]} 39. Rd7 {[%clk 0:02:06.9]} 39... Rb8 {[%clk 0:00:20]} 40.
Rxa7 {[%clk 0:02:06.3]} 40... Rxb4 {[%clk 0:00:20.3]} 41. Re7 {[%clk 0:02:06.5]}
41... Ra4 {[%clk 0:00:19]} 42. Nb7 {[%clk 0:02:07.3]} 42... Nc4 {[%clk
0:00:19.5]} 43. Rxe6 {[%clk 0:02:06]} 43... Nxa5 {[%clk 0:00:18.2]} 44. Ra6
{[%clk 0:02:06.4]} 44... Ra1+ {[%clk 0:00:18.5]} 45. Kg2 {[%clk 0:02:07.5]}
45... Nb3 {[%clk 0:00:20.4]} 46. Rd6 {[%clk 0:02:08.4]} 46... Ra2+ {[%clk
0:00:20.5]} 47. Kh3 {[%clk 0:02:08.1]} 47... Ra7 {[%clk 0:00:21]} 48. Nd8 {[%clk
0:02:06.8]} 48... Nc5 {[%clk 0:00:21.1]} 49. Nc6 {[%clk 0:02:07.7]} 49... Rc7
{[%clk 0:00:21.8]} 50. Rd8+ {[%clk 0:02:03.4]} 50... Kf7 {[%clk 0:00:21.7]} 51.
Nb4 {[%clk 0:02:04.6]} 51... Ne6 {[%clk 0:00:22.3]} 52. Rd3 {[%clk 0:02:00.6]}
52... Rc4 {[%clk 0:00:22.7]} 53. Na6 {[%clk 0:01:47.8]} 53... Rd4 {[%clk
0:00:10.7]} 54. Rc3 {[%clk 0:01:44.4]} 54... Rd7 {[%clk 0:00:11.1]} 55. f4
{[%clk 0:01:44.4]} 55... Ra7 {[%clk 0:00:12]} 56. Nb4 {[%clk 0:01:43.8]} 56...
f5 {[%clk 0:00:13.9]} 57. Nc6 {[%clk 0:01:43.1]} 57... Rc7 {[%clk 0:00:14.5]}
58. Ne5+ {[%clk 0:01:44]} 58... Kf6 {[%clk 0:00:15.5]} 59. Rb3 {[%clk
0:01:34.6]} 59... g5 {[%clk 0:00:15.9]} 60. Nd3 {[%clk 0:01:36.2]} 60... Rd7
{[%clk 0:00:15.5]} 61. Kg2 {[%clk 0:01:36.5]} 61... Rc7 {[%clk 0:00:15.9]} 62.
Nb4 {[%clk 0:01:34.2]} 62... Kg6 {[%clk 0:00:14.5]} 63. Nd3 {[%clk 0:01:31.5]}
63... gxf4 {[%clk 0:00:13.9]} 64. Rb6 {[%clk 0:01:30.1]} 64... Kf7 {[%clk
0:00:12]} 65. gxf4 {[%clk 0:01:30.9]} 65... Rc3 {[%clk 0:00:11.1]} 66. Ne5+
{[%clk 0:01:30.7]} 66... Ke7 {[%clk 0:00:12]} 67. Rb7+ {[%clk 0:01:28.8]} 67...
Ke8 {[%clk 0:00:09.5]} 68. Rb4 {[%clk 0:01:29.3]} 68... Ke7 {[%clk 0:00:10.4]}
69. h4 {[%clk 0:01:29.3]} 69... h5 {[%clk 0:00:10.9]} 70. Rb7+ {[%clk
0:01:28.9]} 70... Ke8 {[%clk 0:00:11.9]} 71. Rb4 {[%clk 0:01:30.4]} 71... Ke7
{[%clk 0:00:12.7]} 72. Kf2 {[%clk 0:01:32]} 72... Rh3 {[%clk 0:00:12.6]} 73. Nf3
{[%clk 0:01:32.6]} 73... Rh1 {[%clk 0:00:13.4]} 74. Rb7+ {[%clk 0:01:32.6]}
74... Kd6 {[%clk 0:00:13.8]} 75. Rb6+ {[%clk 0:01:33.4]} 75... Ke7 {[%clk
0:00:14.3]} 76. Kg3 {[%clk 0:01:34.4]} 76... Rd1 {[%clk 0:00:14.3]} 77. Rb3
{[%clk 0:01:32.5]} 77... Rc1 {[%clk 0:00:14]} 78. Rd3 {[%clk 0:01:31.3]} 78...
Rc4 {[%clk 0:00:14.3]} 79. Rd5 {[%clk 0:01:26.6]} 79... Rxf4 {[%clk 0:00:14.2]}
80. Re5 {[%clk 0:01:27.4]} 80... Rg4+ {[%clk 0:00:14.6]} 81. Kf2 {[%clk
0:01:28.6]} 81... Kf6 {[%clk 0:00:15.9]} 82. Ra5 {[%clk 0:01:29.7]} 82... Rf4
{[%clk 0:00:16.8]} 83. Ra6 {[%clk 0:01:28.1]} 83... Ke7 {[%clk 0:00:16.8]} 84.
Kg3 {[%clk 0:01:29.6]} 84... Rg4+ {[%clk 0:00:17.7]} 85. Kh3 {[%clk 0:01:30.9]}
85... Nf4+ {[%clk 0:00:17.5]} 86. Kh2 {[%clk 0:01:31.3]} 86... Rg2+ {[%clk
0:00:18.4]} 87. Kh1 {[%clk 0:01:32.6]} 87... Rg3 {[%clk 0:00:19.5]} 88. Ne5
{[%clk 0:01:33.3]} 88... Rh3+ {[%clk 0:00:19.8]} 89. Kg1 {[%clk 0:01:34.4]}
89... Rxh4 {[%clk 0:00:20.9]} 90. Kf2 {[%clk 0:01:36]} 90... Kd8 {[%clk
0:00:19.3]} 91. Kg3 {[%clk 0:01:36.2]} 91... Ng6 {[%clk 0:00:16.7]} 92. Rxg6
{[%clk 0:01:34.2]} 92... Re4 {[%clk 0:00:17.4]} 93. Re6 {[%clk 0:01:34.8]} 93...
h4+ {[%clk 0:00:17.3]} 94. Kf3 {[%clk 0:01:36.2]} 94... Kc7 {[%clk 0:00:18.5]}
95. Nf7 {[%clk 0:01:37.8]} 95... Rxe6 {[%clk 0:00:19]} 96. Ng5 {[%clk
0:01:38.9]} 96... Rg6 {[%clk 0:00:19.7]} 0-1

[Event "*** Titled Tuesday 3|2 Blitz"]
[Site "Chess.com"]
[Date "2015.12.01"]
[Round "3"]
[White "NguyenDucHoa"]
[Black "Rikikits"]
[Result "0-1"]
[WhiteElo "2354"]
[BlackElo "2579"]
[TimeControl "180+2"]
[EndTime "11:29:16 PST"]
[Termination "Rikikits won by resignation"]

1. e4 {[%clk 0:02:59.1]} 1... c5 {[%clk 0:03:00.9]} 2. Nf3 {[%clk 0:02:59.7]}
2... d6 {[%clk 0:03:02.3]} 3. d4 {[%clk 0:03:00.7]} 3... cxd4 {[%clk 0:03:04.2]}
4. Nxd4 {[%clk 0:03:02.6]} 4... Nf6 {[%clk 0:03:05.6]} 5. Nc3 {[%clk 0:03:03.8]}
5... Nc6 {[%clk 0:03:07.2]} 6. Bg5 {[%clk 0:03:02.8]} 6... e6 {[%clk 0:03:08.5]}
7. Qd2 {[%clk 0:02:58.5]} 7... Be7 {[%clk 0:03:09]} 8. O-O-O {[%clk 0:02:59.4]}
8... O-O {[%clk 0:03:09.6]} 9. f4 {[%clk 0:02:59.2]} 9... Nxd4 {[%clk
0:03:10.1]} 10. Qxd4 {[%clk 0:02:59.9]} 10... Qa5 {[%clk 0:03:11.7]} 11. e5
{[%clk 0:02:53.2]} 11... dxe5 {[%clk 0:03:13.6]} 12. Qxe5 {[%clk 0:02:52]} 12...
b5 {[%clk 0:03:14.4]} 13. Qxb5 {[%clk 0:02:48.6]} 13... Qc7 {[%clk 0:03:14.7]}
14. Qe5 {[%clk 0:02:46.2]} 14... Qb7 {[%clk 0:03:15.3]} 15. Bc4 {[%clk
0:02:45.4]} 15... h6 {[%clk 0:03:13.5]} 16. h4 {[%clk 0:02:43]} 16... Rb8 {[%clk
0:03:07.8]} 17. Bb3 {[%clk 0:02:43.5]} 17... Qb6 {[%clk 0:03:01.3]} 18. f5
{[%clk 0:02:32.8]} 18... hxg5 {[%clk 0:02:52.2]} 19. hxg5 {[%clk 0:02:32.7]}
19... Ng4 {[%clk 0:02:53.1]} 20. Qe4 {[%clk 0:01:56]} 20... Qe3+ {[%clk
0:02:49.8]} 21. Kb1 {[%clk 0:01:57.2]} 21... Qxe4 {[%clk 0:02:48.5]} 22. Nxe4
{[%clk 0:01:58.3]} 22... exf5 {[%clk 0:02:50.2]} 23. Rh4 {[%clk 0:01:50.5]}
23... fxe4 {[%clk 0:02:43.7]} 24. Rdh1 {[%clk 0:01:50.9]} 24... Nh6 {[%clk
0:02:45.3]} 25. Rh5 {[%clk 0:01:45.9]} 25... Bg4 {[%clk 0:02:44]} 26. gxh6
{[%clk 0:01:44.1]} 26... Bxh5 {[%clk 0:02:44.6]} 27. Rxh5 {[%clk 0:01:45.2]}
27... g6 {[%clk 0:02:31.9]} 28. Re5 {[%clk 0:01:45.3]} 28... Bf6 {[%clk
0:02:33.3]} 29. Rxe4 {[%clk 0:01:46.1]} 29... Rfe8 {[%clk 0:02:34.8]} 0-1

[Event "*** Titled Tuesday 3|2 Blitz"]
[Site "Chess.com"]
[Date "2015.12.01"]
[Round "3"]
[White "Aygehovit1992"]
[Black "ArnaudovP"]
[Result "1-0"]
[WhiteElo "2444"]
[BlackElo "2321"]
[TimeControl "180+2"]
[EndTime "11:29:43 PST"]
[Termination "Aygehovit1992 won by checkmate"]

1. e4 {[%clk 0:03:01.9]} 1... e5 {[%clk 0:02:59.5]} 2. Nf3 {[%clk 0:03:02.8]}
2... Nc6 {[%clk 0:02:59.9]} 3. Bb5 {[%clk 0:03:03.8]} 3... a6 {[%clk 0:02:58.6]}
4. Ba4 {[%clk 0:03:04.5]} 4... Nf6 {[%clk 0:02:59.3]} 5. d3 {[%clk 0:03:05.8]}
5... b5 {[%clk 0:02:56.4]} 6. Bb3 {[%clk 0:03:06.6]} 6... Be7 {[%clk 0:02:55.9]}
7. Nc3 {[%clk 0:03:06.6]} 7... O-O {[%clk 0:02:55.6]} 8. O-O {[%clk 0:03:06.9]}
8... d6 {[%clk 0:02:55.2]} 9. h3 {[%clk 0:03:08.2]} 9... Bb7 {[%clk 0:02:53.8]}
10. a3 {[%clk 0:03:07.8]} 10... Nd4 {[%clk 0:02:54.1]} 11. Nxd4 {[%clk
0:03:07.7]} 11... exd4 {[%clk 0:02:55.3]} 12. Ne2 {[%clk 0:03:09.4]} 12... c5
{[%clk 0:02:56.7]} 13. Ng3 {[%clk 0:03:03.4]} 13... Re8 {[%clk 0:02:56.1]} 14.
f4 {[%clk 0:02:57.8]} 14... c4 {[%clk 0:02:52.3]} 15. Ba2 {[%clk 0:02:58.3]}
15... d5 {[%clk 0:02:50.1]} 16. e5 {[%clk 0:02:59]} 16... Nd7 {[%clk 0:02:50.7]}
17. b3 {[%clk 0:02:50.7]} 17... Rc8 {[%clk 0:02:47.6]} 18. bxc4 {[%clk
0:02:51.2]} 18... dxc4 {[%clk 0:02:48.2]} 19. dxc4 {[%clk 0:02:51.4]} 19... bxc4
{[%clk 0:02:48.3]} 20. Rb1 {[%clk 0:02:52.4]} 20... Bd5 {[%clk 0:02:45.8]} 21.
Kh2 {[%clk 0:02:52.9]} 21... Bc5 {[%clk 0:02:46.3]} 22. Nf5 {[%clk 0:02:45.1]}
22... f6 {[%clk 0:02:44.3]} 23. Qg4 {[%clk 0:02:38.7]} 23... g6 {[%clk
0:02:41.3]} 24. Nh6+ {[%clk 0:02:18.3]} 24... Kh8 {[%clk 0:02:40]} 25. Rb7
{[%clk 0:02:17.5]} 25... f5 {[%clk 0:02:36.4]} 26. Qe2 {[%clk 0:02:10.5]} 26...
Qe7 {[%clk 0:02:31.7]} 27. Rxd7 {[%clk 0:01:28]} 27... Qxd7 {[%clk 0:02:31.4]}
28. Bxc4 {[%clk 0:01:29.6]} 28... Bxc4 {[%clk 0:02:31.2]} 29. Qxc4 {[%clk
0:01:30.6]} 29... Bf8 {[%clk 0:02:27.8]} 30. Qg8# {[%clk 0:01:31]} 1-0